[Event "IMSA Rapid Men 2019"]
[Site "Hengshui"]
[Date "2019.05.16"]
[Round "10.3"]
[White "Yu, Yangyi"]
[Black "Dominguez Perez, Leinier"]
[Result "0-1"]
[ECO "D35"]
[WhiteElo "2739"]
[BlackElo "2750"]
[Annotator "RC"]
[PlyCount "92"]
[EventDate "2019.05.14"]
[EventType "rapid"]
[EventCountry "CHN"]
[SourceTitle "playchess.com"]
[Source "ChessBase"]
[SourceQuality "1"]
[TimeControl "900+10"]

1. d4 {[%emt 0:00:00]} Nf6 {[%emt 0:03:37]} 2. c4 {[%emt 0:00:00]} e6 {[%emt 0:00:01]} 3. Nc3 {[%emt 0:00:00]} d5 {[%emt 0:00:01]} 4. cxd5 {[%emt 0:00:00]} Nxd5 {[%emt 0:00:01]} 5. e4 {[%emt 0:00:00]} Nxc3 {[%emt 0:00:01]} 6. bxc3 {[%emt 0:00:00]} c5 {[%emt 0:00:01]} 7. a3 {[%emt 0:00:02]} g6 {[%emt 0:00:09]} 8. Nf3 {[%emt 0:00:42]} Bg7 {[%emt 0:00:00]} 9. Be2 {[%emt 0:00:23]} O-O {[%emt 0:00:27]} 10. O-O {[%emt 0:00:05]} cxd4 {[%emt 0:00:06]} 11. cxd4 {[%emt 0:00:04]} Nc6 {[%emt 0:00:00]} 12. Bg5 {[%emt 0:01:11]} Qd6 {[%emt 0:04:37]} 13. e5 {[%emt 0:00:39]} Qd5 {[%emt 0:00:01]} 14. Rc1 {[%emt 0:01:04]} h6 {[%emt 0:00:02]} 15. Be3 {[%emt 0:00:56]} Rd8 {[%emt 0:00:01]} 16. Bc4 {[%emt 0:02:17]} Qa5 {[%emt 0:00:34]} 17. Qb3 {[%emt 0:00:30]} Ne7 {[%emt 0:01:05]} 18. Bd2 {[%emt 0:02:10]} Qb6 {[%emt 0:00:19]} 19. Qa2 {[%emt 0:00:10]} Bd7 {[%emt 0:00:28]} 20. Bb4 {[%emt 0:00:11]} Nc6 {[%emt 0:01:24]} 21. Bc5 {[%emt 0:00:47]} Qa5 {[%emt 0:00:11]} 22. Bd6 {[%emt 0:00:36]} Rdc8 {[%emt 0:02:16]} 23. d5 {[%emt 0:00:12]} exd5 {[%emt 0:00:01]} 24. Bxd5 {[%emt 0:00:02]} Nd8 {[%emt 0:00:01]} 25. Nd4 {[%emt 0:00:14]} Rxc1 {[%emt 0:00:14]} 26. Rxc1 {[%emt 0:00:04]} Rc8 {[%emt 0:00:02]} 27. Rd1 {[%emt 0:00:35]} Ba4 {[%emt 0:00:34]} 28. Bb3 {[%emt 0:03:01]} Bxb3 {[%emt 0:00:25]} 29. Nxb3 {[%emt 0:00:48]} Qa4 {[%emt 0:00:27]} 30. h3 {[%emt 0:00:53]} Ne6 {[%emt 0:00:02]} 31. Qb1 {[%emt 0:00:01]} b6 {[%emt 0:01:21]} 32. Qb2 {[%emt 0:01:25]} Qe4 {[%emt 0:00:47]} 33. Nd2 {[%emt 0:00:38]} Qe2 {[%emt 0:00:28]} 34. Rc1 {[%emt 0:00:14]} Rxc1+ 35. Qxc1 {[%emt 0:00:01]} Bxe5 {[%emt 0:00:43]} 36. Bxe5 {[%emt 0:00:07]} Qxe5 {[%emt 0:00:01]} 37. Nf3 {[%emt 0:00:02]} Qf4 {[%emt 0:00:08]} 38. Qc6 {[%emt 0:00:01]} Kg7 {[%emt 0:00:08]} 39. g3 {[%emt 0:00:09]} Qc7 {[%emt 0:00:15]} 40. Qa4 {[%emt 0:00:25]} a5 {[%emt 0:00:13]} 41. h4 {[%emt 0:00:04]} Qc5 {[%emt 0:00:07]} 42. Qb3 {[%emt 0:00:09]} h5 {[%emt 0:00:28]} 43. Qb2+ {[%emt 0:00:05]} Kg8 {[%emt 0:00:01]} 44. a4 {[%emt 0:00:17]} Qc6 {[%emt 0:00:14]} 45. Ne5 {[%emt 0:00:09]} Qxa4 {[%emt 0:00:12]} 46. Qxb6 {[%emt 0:00:01]} Qa1+ {[%emt 0:00:02]} 0-1